[Event "Late-Titled-Tuesday-Blitz-April-02-2024"]
[Site "Chess.com"]
[Date "2024.04.02"]
[Round "2"]
[White "DraningWaterHi"]
[Black "ATM622"]
[Result "0-1"]
[WhiteElo "2285"]
[BlackElo "2525"]
[TimeControl "180+1"]
[EndTime "14:18:43 PDT"]
[Termination "ATM622 won by resignation"]

1. d4 {[%clk 0:03:00.9]} 1... Nf6 {[%clk 0:02:58]} 2. Bf4 {[%clk 0:03:01]} 2...
d5 {[%clk 0:02:57.7]} 3. e3 {[%clk 0:03:01.4]} 3... e6 {[%clk 0:02:57.4]} 4. Nd2
{[%clk 0:03:01.8]} 4... Be7 {[%clk 0:02:56.4]} 5. Ngf3 {[%clk 0:03:02.1]} 5...
O-O {[%clk 0:02:56.7]} 6. Bd3 {[%clk 0:03:02.4]} 6... Nbd7 {[%clk 0:02:57]} 7.
O-O {[%clk 0:03:02.1]} 7... c5 {[%clk 0:02:57.2]} 8. c3 {[%clk 0:03:02.2]} 8...
b6 {[%clk 0:02:56.7]} 9. e4 {[%clk 0:03:02.7]} 9... dxe4 {[%clk 0:02:55.2]} 10.
Nxe4 {[%clk 0:03:03.6]} 10... Bb7 {[%clk 0:02:55.2]} 11. Nd6 {[%clk 0:03:02.6]}
11... Bc6 {[%clk 0:02:50.5]} 12. Bg3 {[%clk 0:02:24.1]} 12... Nh5 {[%clk
0:02:44.7]} 13. Ne4 {[%clk 0:01:58.8]} 13... Nxg3 {[%clk 0:02:41.5]} 14. hxg3
{[%clk 0:01:59.7]} 14... Nf6 {[%clk 0:02:38.3]} 15. Nxf6+ {[%clk 0:01:58.3]}
15... Bxf6 {[%clk 0:02:36.7]} 16. dxc5 {[%clk 0:01:58.8]} 16... bxc5 {[%clk
0:02:34]} 17. Qc2 {[%clk 0:01:59.4]} 17... h6 {[%clk 0:02:29.2]} 18. Be4 {[%clk
0:01:57.9]} 18... Qc7 {[%clk 0:02:27.3]} 19. Rad1 {[%clk 0:01:56.2]} 19... Rfd8
{[%clk 0:02:24.9]} 20. Nd2 {[%clk 0:01:49.3]} 20... Rac8 {[%clk 0:02:21.1]} 21.
Bxc6 {[%clk 0:01:48.1]} 21... Qxc6 {[%clk 0:02:13.6]} 22. Qe4 {[%clk 0:01:43.4]}
22... Be7 {[%clk 0:02:06.4]} 23. Qxc6 {[%clk 0:01:43]} 23... Rxc6 {[%clk
0:02:05.4]} 24. Nc4 {[%clk 0:01:43.2]} 24... Rd5 {[%clk 0:01:58.1]} 25. Rfe1
{[%clk 0:01:41.3]} 25... Kf8 {[%clk 0:01:56.2]} 26. f4 {[%clk 0:01:34.4]} 26...
Rc8 {[%clk 0:01:51.2]} 27. Kf2 {[%clk 0:01:19.8]} 27... Rcd8 {[%clk 0:01:45.6]}
28. Ke2 {[%clk 0:01:18.9]} 28... Ke8 {[%clk 0:01:39.9]} 29. Ne5 {[%clk
0:01:17.6]} 29... Bf6 {[%clk 0:01:31.9]} 30. Nc4 {[%clk 0:01:16.5]} 30... Ke7
{[%clk 0:01:24]} 31. Na5 {[%clk 0:01:13.7]} 31... Rc8 {[%clk 0:01:15.9]} 32. Nc4
{[%clk 0:01:08.3]} 32... Rcd8 {[%clk 0:01:09.4]} 33. Na5 {[%clk 0:01:06.4]}
33... Rc8 {[%clk 0:01:09.1]} 34. Kf3 {[%clk 0:00:50.7]} 34... Kd7 {[%clk
0:01:00.6]} 35. c4 {[%clk 0:00:45.8]} 35... Rxd1 {[%clk 0:00:57.7]} 36. Rxd1+
{[%clk 0:00:46.7]} 36... Kc7 {[%clk 0:00:58.1]} 37. Rd2 {[%clk 0:00:43.2]} 37...
Rb8 {[%clk 0:00:54.9]} 38. Nb3 {[%clk 0:00:41.5]} 38... Kc6 {[%clk 0:00:52.1]}
39. Na5+ {[%clk 0:00:37.9]} 39... Kc7 {[%clk 0:00:52.3]} 40. Nb3 {[%clk
0:00:38.1]} 40... Be7 {[%clk 0:00:52.3]} 41. Nc1 {[%clk 0:00:34.6]} 41... Rb4
{[%clk 0:00:50.1]} 42. b3 {[%clk 0:00:34.5]} 42... Rb8 {[%clk 0:00:48.2]} 43.
Ne2 {[%clk 0:00:32.5]} 43... Kc6 {[%clk 0:00:45.6]} 44. Nc3 {[%clk 0:00:32.3]}
44... a6 {[%clk 0:00:46.1]} 45. g4 {[%clk 0:00:30.8]} 45... Bf6 {[%clk
0:00:45.1]} 46. Ne4 {[%clk 0:00:31.2]} 46... Bd4 {[%clk 0:00:44.7]} 47. Ng3
{[%clk 0:00:24.6]} 47... a5 {[%clk 0:00:38.8]} 48. Ne2 {[%clk 0:00:24.7]} 48...
Bf6 {[%clk 0:00:38.5]} 49. Rd3 {[%clk 0:00:23.7]} 49... a4 {[%clk 0:00:37]} 50.
Nc1 {[%clk 0:00:19.2]} 50... Bb2 {[%clk 0:00:33.8]} 51. Ne2 {[%clk 0:00:19.2]}
51... a3 {[%clk 0:00:31]} 52. Nc3 {[%clk 0:00:18.9]} 52... Bxc3 {[%clk 0:00:20]}
53. Rxc3 {[%clk 0:00:19.8]} 53... Rd8 {[%clk 0:00:19.6]} 54. Ke3 {[%clk
0:00:20.4]} 54... Rd1 {[%clk 0:00:19.1]} 55. Rd3 {[%clk 0:00:20.5]} 55... Ra1
{[%clk 0:00:17.6]} 56. Rd2 {[%clk 0:00:20.8]} 56... Re1+ {[%clk 0:00:15.7]} 57.
Kf2 {[%clk 0:00:21.2]} 57... Re4 {[%clk 0:00:15.3]} 58. Kf3 {[%clk 0:00:21.7]}
58... Re1 {[%clk 0:00:15.2]} 59. Kf2 {[%clk 0:00:22.2]} 59... Rb1 {[%clk
0:00:15.4]} 60. Kf3 {[%clk 0:00:21.9]} 60... f5 {[%clk 0:00:15.1]} 61. gxf5
{[%clk 0:00:21.9]} 61... exf5 {[%clk 0:00:16]} 62. Re2 {[%clk 0:00:22.2]} 62...
Rd1 {[%clk 0:00:15.4]} 63. Re6+ {[%clk 0:00:22.2]} 63... Kd7 {[%clk 0:00:14.8]}
64. Re2 {[%clk 0:00:23.1]} 64... Rd3+ {[%clk 0:00:11.8]} 65. Re3 {[%clk
0:00:23.5]} 65... Rd4 {[%clk 0:00:11.9]} 66. Ke2 {[%clk 0:00:23.3]} 66... Kc6
{[%clk 0:00:11.6]} 67. g3 {[%clk 0:00:23]} 67... Rd7 {[%clk 0:00:07.8]} 68. Rd3
{[%clk 0:00:22.8]} 68... Re7+ {[%clk 0:00:07.7]} 69. Re3 {[%clk 0:00:23.2]}
69... Rd7 {[%clk 0:00:07.8]} 70. Rd3 {[%clk 0:00:23.4]} 70... Rf7 {[%clk
0:00:06.2]} 71. Kf2 {[%clk 0:00:23.9]} 71... g5 {[%clk 0:00:05.5]} 72. Rd5
{[%clk 0:00:23.6]} 72... g4 {[%clk 0:00:04.6]} 73. Ke3 {[%clk 0:00:23.6]} 73...
Re7+ {[%clk 0:00:04.7]} 74. Kf2 {[%clk 0:00:24]} 74... Re8 {[%clk 0:00:03.5]}
75. Rxf5 {[%clk 0:00:24.1]} 75... Rd8 {[%clk 0:00:02.7]} 76. Rd5 {[%clk
0:00:21.6]} 76... Rb8 {[%clk 0:00:02.7]} 77. f5 {[%clk 0:00:20.9]} 77... Rf8
{[%clk 0:00:01.9]} 78. Ke3 {[%clk 0:00:20.5]} 78... Re8+ {[%clk 0:00:02.2]} 79.
Kd3 {[%clk 0:00:21]} 79... Rf8 {[%clk 0:00:02.2]} 80. Ke4 {[%clk 0:00:21.4]}
80... Re8+ {[%clk 0:00:02.5]} 81. Kf4 {[%clk 0:00:21.4]} 81... Re2 {[%clk
0:00:02.6]} 82. Kxg4 {[%clk 0:00:21.9]} 82... Rxa2 {[%clk 0:00:02.6]} 83. f6
{[%clk 0:00:22.4]} 83... Rf2 {[%clk 0:00:02.5]} 84. Rf5 {[%clk 0:00:22.6]} 84...
Rxf5 {[%clk 0:00:02.5]} 85. Kxf5 {[%clk 0:00:23.5]} 85... a2 {[%clk 0:00:03.4]}
86. f7 {[%clk 0:00:24.2]} 86... a1=Q {[%clk 0:00:03.9]} 87. f8=Q {[%clk
0:00:25.1]} 87... Qf1+ {[%clk 0:00:04.3]} 0-1

[Event "Late-Titled-Tuesday-Blitz-April-02-2024"]
[Site "Chess.com"]
[Date "2024.04.02"]
[Round "2"]
[White "PapaieDudu"]
[Black "ProfessorChess101"]
[Result "0-1"]
[WhiteElo "2385"]
[BlackElo "2788"]
[TimeControl "180+1"]
[EndTime "14:19:47 PDT"]
[Termination "ProfessorChess101 won by checkmate"]

1. Nf3 {[%clk 0:02:56.8]} 1... a6 {[%clk 0:02:58.9]} 2. e4 {[%clk 0:02:55.7]}
2... b5 {[%clk 0:02:59]} 3. d4 {[%clk 0:02:55]} 3... Bb7 {[%clk 0:02:59.2]} 4.
Bd3 {[%clk 0:02:52.4]} 4... e6 {[%clk 0:02:58.9]} 5. O-O {[%clk 0:02:51.9]} 5...
Nf6 {[%clk 0:02:58.7]} 6. Qe2 {[%clk 0:02:51.6]} 6... d6 {[%clk 0:02:58.6]} 7.
a4 {[%clk 0:02:51]} 7... b4 {[%clk 0:02:58.2]} 8. c3 {[%clk 0:02:51.1]} 8... a5
{[%clk 0:02:56.5]} 9. Nbd2 {[%clk 0:02:50.6]} 9... Nbd7 {[%clk 0:02:55.7]} 10.
e5 {[%clk 0:02:48.9]} 10... Nd5 {[%clk 0:02:55.4]} 11. Ne4 {[%clk 0:02:48.1]}
11... dxe5 {[%clk 0:02:52.1]} 12. dxe5 {[%clk 0:02:47.8]} 12... Nc5 {[%clk
0:02:49]} 13. Rd1 {[%clk 0:02:45.1]} 13... Nxd3 {[%clk 0:02:34.5]} 14. Rxd3
{[%clk 0:02:44.5]} 14... Ba6 {[%clk 0:02:33.3]} 15. Nd4 {[%clk 0:02:32.9]} 15...
Bxd3 {[%clk 0:02:15.2]} 16. Qxd3 {[%clk 0:02:32.5]} 16... Qd7 {[%clk 0:02:11.1]}
17. c4 {[%clk 0:02:15.9]} 17... Nb6 {[%clk 0:01:58.9]} 18. c5 {[%clk 0:02:02.1]}
18... Nd5 {[%clk 0:01:57.5]} 19. c6 {[%clk 0:01:57.3]} 19... Qd8 {[%clk
0:01:52.4]} 20. Bg5 {[%clk 0:01:42.4]} 20... Be7 {[%clk 0:01:51.1]} 21. Nd6+
{[%clk 0:00:53.7]} 21... cxd6 {[%clk 0:01:41.4]} 22. c7 {[%clk 0:00:47.5]} 22...
Qxc7 {[%clk 0:01:36.3]} 23. Nb5 {[%clk 0:00:47.3]} 23... Qc6 {[%clk 0:01:07.8]}
24. Rc1 {[%clk 0:00:40.1]} 24... Qxc1+ {[%clk 0:00:53.7]} 25. Bxc1 {[%clk
0:00:39]} 25... dxe5 {[%clk 0:00:54.3]} 26. Qg3 {[%clk 0:00:30.3]} 26... O-O
{[%clk 0:00:51.6]} 27. h4 {[%clk 0:00:27.8]} 27... Bf6 {[%clk 0:00:46.7]} 28.
Bg5 {[%clk 0:00:17.1]} 28... e4 {[%clk 0:00:40.2]} 29. Nd6 {[%clk 0:00:16.9]}
29... e3 {[%clk 0:00:33.2]} 30. fxe3 {[%clk 0:00:14.9]} 30... Bxb2 {[%clk
0:00:31.1]} 31. e4 {[%clk 0:00:11.1]} 31... Bd4+ {[%clk 0:00:30.9]} 32. Kh2
{[%clk 0:00:10.7]} 32... Nc3 {[%clk 0:00:31.2]} 33. e5 {[%clk 0:00:10.1]} 33...
f6 {[%clk 0:00:20.6]} 34. Bxf6 {[%clk 0:00:10.2]} 34... Rxf6 {[%clk 0:00:17.8]}
35. exf6 {[%clk 0:00:11.1]} 35... Bxf6 {[%clk 0:00:18.4]} 36. Qg4 {[%clk
0:00:11.3]} 36... Be5+ {[%clk 0:00:09.9]} 37. Kh3 {[%clk 0:00:08.3]} 37... Bxd6
{[%clk 0:00:09.8]} 38. Qxe6+ {[%clk 0:00:08.8]} 38... Kh8 {[%clk 0:00:10.1]} 39.
Qxd6 {[%clk 0:00:09.1]} 39... Re8 {[%clk 0:00:09]} 40. Qc5 {[%clk 0:00:07.7]}
40... Ra8 {[%clk 0:00:07]} 41. Qc6 {[%clk 0:00:05.2]} 41... Rb8 {[%clk
0:00:06.1]} 42. Qc7 {[%clk 0:00:04.6]} 42... Re8 {[%clk 0:00:04.6]} 43. Qxa5
{[%clk 0:00:04.2]} 43... Rb8 {[%clk 0:00:04.7]} 44. Qc7 {[%clk 0:00:03.1]} 44...
Ra8 {[%clk 0:00:05]} 45. Qc6 {[%clk 0:00:02.9]} 45... Rb8 {[%clk 0:00:04.1]} 46.
Qc7 {[%clk 0:00:03.3]} 46... Re8 {[%clk 0:00:04.6]} 47. Qc6 {[%clk 0:00:03.3]}
47... Rd8 {[%clk 0:00:03.6]} 48. a5 {[%clk 0:00:02.9]} 48... Rd3+ {[%clk
0:00:03.1]} 49. g3 {[%clk 0:00:03.3]} 49... h5 {[%clk 0:00:03.6]} 50. Qe8+
{[%clk 0:00:03.1]} 50... Kh7 {[%clk 0:00:03.6]} 51. Qxh5+ {[%clk 0:00:03.4]}
51... Kg8 {[%clk 0:00:02.8]} 52. Qe8+ {[%clk 0:00:03.9]} 52... Kh7 {[%clk
0:00:03.4]} 53. h5 {[%clk 0:00:03]} 53... Rd6 {[%clk 0:00:02.8]} 54. Qe1 {[%clk
0:00:01.9]} 54... Rf6 {[%clk 0:00:03.1]} 55. Kh4 {[%clk 0:00:01.8]} 55... Nd5
{[%clk 0:00:02.8]} 56. Qd2 {[%clk 0:00:02]} 56... Ne7 {[%clk 0:00:02.8]} 57.
Qd3+ {[%clk 0:00:02]} 57... Nf5+ {[%clk 0:00:03.4]} 58. Kg4 {[%clk 0:00:01.5]}
58... Kh6 {[%clk 0:00:03.8]} 59. Qd2+ {[%clk 0:00:01.6]} 59... Kh7 {[%clk
0:00:04.1]} 60. Qd3 {[%clk 0:00:02.2]} 60... Kg8 {[%clk 0:00:04.6]} 61. Kh3
{[%clk 0:00:02.5]} 61... Ne7 {[%clk 0:00:03.9]} 62. Qd8+ {[%clk 0:00:03]} 62...
Kf7 {[%clk 0:00:04.1]} 63. Qd7 {[%clk 0:00:03.3]} 63... Rf5 {[%clk 0:00:04.2]}
64. Qd3 {[%clk 0:00:03.5]} 64... Rxh5+ {[%clk 0:00:03.6]} 65. Kg2 {[%clk
0:00:04]} 65... Rxa5 {[%clk 0:00:04.1]} 66. Qc4+ {[%clk 0:00:04.1]} 66... Nd5
{[%clk 0:00:04.2]} 67. g4 {[%clk 0:00:03.9]} 67... Ke6 {[%clk 0:00:03.8]} 68.
Kf1 {[%clk 0:00:04.1]} 68... Ra1+ {[%clk 0:00:03.4]} 69. Ke2 {[%clk 0:00:04.3]}
69... Ra3 {[%clk 0:00:03.4]} 70. Qe4+ {[%clk 0:00:04.4]} 70... Kd6 {[%clk
0:00:03.7]} 71. Qd4 {[%clk 0:00:04.6]} 71... Rc3 {[%clk 0:00:03.2]} 72. Qxg7
{[%clk 0:00:04.8]} 72... b3 {[%clk 0:00:03.5]} 73. Qf8+ {[%clk 0:00:04.6]} 73...
Ke5 {[%clk 0:00:03.5]} 74. Qe8+ {[%clk 0:00:04.7]} 74... Kd4 {[%clk 0:00:04]}
75. Qh8+ {[%clk 0:00:04.7]} 75... Kc4 {[%clk 0:00:04.3]} 76. Qc8+ {[%clk
0:00:05.3]} 76... Kb5 {[%clk 0:00:03.4]} 77. Qb7+ {[%clk 0:00:05.7]} 77... Nb6
{[%clk 0:00:03.4]} 78. Kd2 {[%clk 0:00:06]} 78... Rc2+ {[%clk 0:00:03.7]} 79.
Kd1 {[%clk 0:00:06.5]} 79... Rc4 {[%clk 0:00:03.7]} 80. Qb8 {[%clk 0:00:06.5]}
80... b2 {[%clk 0:00:02.9]} 81. Qe8+ {[%clk 0:00:05.6]} 81... Kb4 {[%clk
0:00:02.3]} 82. Qe7+ {[%clk 0:00:05.4]} 82... Kb3 {[%clk 0:00:02.8]} 83. Qe3+
{[%clk 0:00:05.5]} 83... Ka2 {[%clk 0:00:02.3]} 84. Qd2 {[%clk 0:00:01.9]} 84...
Rc1+ {[%clk 0:00:02.2]} 85. Ke2 {[%clk 0:00:02.5]} 85... Nc4 {[%clk 0:00:03.1]}
86. Qb4 {[%clk 0:00:02]} 86... b1=Q {[%clk 0:00:03]} 87. Qa4+ {[%clk 0:00:02.6]}
87... Na3 {[%clk 0:00:03.1]} 88. g5 {[%clk 0:00:02.8]} 88... Qc2+ {[%clk
0:00:03]} 89. Qxc2+ {[%clk 0:00:03.4]} 89... Rxc2+ {[%clk 0:00:03.6]} 90. Kf3
{[%clk 0:00:04.3]} 90... Rc6 {[%clk 0:00:03.7]} 91. Kg4 {[%clk 0:00:05.2]} 91...
Nc4 {[%clk 0:00:04.3]} 92. Kh5 {[%clk 0:00:06.1]} 92... Ne5 {[%clk 0:00:03.8]}
93. g6 {[%clk 0:00:06.5]} 93... Nxg6 {[%clk 0:00:04.2]} 94. Kh6 {[%clk
0:00:06.7]} 94... Kb3 {[%clk 0:00:04.7]} 95. Kg7 {[%clk 0:00:07.6]} 95... Kc4
{[%clk 0:00:05.4]} 96. Kf7 {[%clk 0:00:08.5]} 96... Kd5 {[%clk 0:00:06]} 97. Kg7
{[%clk 0:00:09]} 97... Ke5 {[%clk 0:00:06.6]} 98. Kf7 {[%clk 0:00:09.9]} 98...
Kf5 {[%clk 0:00:07.1]} 99. Kg7 {[%clk 0:00:10.8]} 99... Nf4 {[%clk 0:00:07.3]}
100. Kf7 {[%clk 0:00:11.2]} 100... Rc7+ {[%clk 0:00:07.7]} 101. Kf8 {[%clk
0:00:12.1]} 101... Ke6 {[%clk 0:00:07.1]} 102. Ke8 {[%clk 0:00:13]} 102... Rc8#
{[%clk 0:00:07.2]} 0-1

[Event "Late-Titled-Tuesday-Blitz-April-02-2024"]
[Site "Chess.com"]
[Date "2024.04.02"]
[Round "3"]
[White "KuzubovYuriy"]
[Black "Zq1"]
[Result "1-0"]
[WhiteElo "2923"]
[BlackElo "2615"]
[TimeControl "180+1"]
[EndTime "14:21:32 PDT"]
[Termination "KuzubovYuriy won by resignation"]

1. d4 {[%clk 0:03:00.9]} 1... Nf6 {[%clk 0:02:58.7]} 2. c4 {[%clk 0:03:01.2]}
2... a6 {[%clk 0:02:57.8]} 3. Nc3 {[%clk 0:02:55.4]} 3... c5 {[%clk 0:02:57.6]}
4. d5 {[%clk 0:02:50.6]} 4... b5 {[%clk 0:02:56.5]} 5. Qc2 {[%clk 0:02:40.3]}
5... b4 {[%clk 0:02:52.9]} 6. Ne4 {[%clk 0:02:37.7]} 6... Nxe4 {[%clk
0:02:51.7]} 7. Qxe4 {[%clk 0:02:37.9]} 7... d6 {[%clk 0:02:51.8]} 8. b3 {[%clk
0:02:35.3]} 8... Nd7 {[%clk 0:02:44.2]} 9. Bb2 {[%clk 0:02:33.8]} 9... Nf6
{[%clk 0:02:44.1]} 10. Qe3 {[%clk 0:02:31.4]} 10... g6 {[%clk 0:02:43.4]} 11.
Bxf6 {[%clk 0:02:30.5]} 1-0

[Event "Late-Titled-Tuesday-Blitz-April-02-2024"]
[Site "Chess.com"]
[Date "2024.04.02"]
[Round "3"]
[White "javierfreilemartin"]
[Black "SmirnovTimofey2000"]
[Result "1-0"]
[WhiteElo "2303"]
[BlackElo "1940"]
[TimeControl "180+1"]
[EndTime "14:22:05 PDT"]
[Termination "javierfreilemartin won by resignation"]

1. c4 {[%clk 0:02:53.6]} 1... c6 {[%clk 0:02:58.3]} 2. Nc3 {[%clk 0:02:52.8]}
2... d5 {[%clk 0:02:58.5]} 3. e3 {[%clk 0:02:53.1]} 3... Nf6 {[%clk 0:02:55.4]}
4. Nf3 {[%clk 0:02:53]} 4... e6 {[%clk 0:02:54.4]} 5. d4 {[%clk 0:02:49.9]} 5...
a6 {[%clk 0:02:53.4]} 6. Bd2 {[%clk 0:02:48.8]} 6... Nbd7 {[%clk 0:02:47.8]} 7.
Rc1 {[%clk 0:02:47.7]} 7... dxc4 {[%clk 0:02:44.2]} 8. Bxc4 {[%clk 0:02:46.2]}
8... b5 {[%clk 0:02:44.1]} 9. Be2 {[%clk 0:02:45.6]} 9... c5 {[%clk 0:02:41.9]}
10. O-O {[%clk 0:02:43.6]} 10... Bb7 {[%clk 0:02:38.1]} 11. a4 {[%clk
0:02:42.9]} 11... c4 {[%clk 0:02:34.5]} 12. axb5 {[%clk 0:02:41.5]} 12... axb5
{[%clk 0:02:29.1]} 13. Nxb5 {[%clk 0:02:41.5]} 13... Ne4 {[%clk 0:02:26.5]} 14.
Rxc4 {[%clk 0:02:35.7]} 14... Nxd2 {[%clk 0:02:24.9]} 15. Nc7+ {[%clk
0:02:33.5]} 1-0

[Event "Late-Titled-Tuesday-Blitz-April-02-2024"]
[Site "Chess.com"]
[Date "2024.04.02"]
[Round "3"]
[White "rdarruda"]
[Black "DraningWaterHi"]
[Result "1/2-1/2"]
[WhiteElo "2492"]
[BlackElo "2289"]
[TimeControl "180+1"]
[EndTime "14:23:26 PDT"]
[Termination "Game drawn by repetition"]

1. d4 {[%clk 0:02:55.9]} 1... Nf6 {[%clk 0:02:58.7]} 2. Nf3 {[%clk 0:02:55.9]}
2... g6 {[%clk 0:02:58.1]} 3. Nc3 {[%clk 0:02:55.3]} 3... Bg7 {[%clk 0:02:56.9]}
4. e4 {[%clk 0:02:55.4]} 4... d6 {[%clk 0:02:56.1]} 5. Bg5 {[%clk 0:02:55.2]}
5... O-O {[%clk 0:02:56.1]} 6. Qd2 {[%clk 0:02:55]} 6... Nbd7 {[%clk 0:02:53.4]}
7. O-O-O {[%clk 0:02:54.3]} 7... c5 {[%clk 0:02:51.1]} 8. dxc5 {[%clk
0:02:43.9]} 8... Nxc5 {[%clk 0:02:50.9]} 9. Qe1 {[%clk 0:02:42]} 9... Qa5 {[%clk
0:02:41]} 10. Kb1 {[%clk 0:02:39.2]} 10... Be6 {[%clk 0:02:40.8]} 11. a3 {[%clk
0:02:38.9]} 11... Rfe8 {[%clk 0:02:36.6]} 12. Nd4 {[%clk 0:02:38]} 12... Qb6
{[%clk 0:02:29.3]} 13. Nxe6 {[%clk 0:02:36.1]} 13... fxe6 {[%clk 0:02:29.8]} 14.
e5 {[%clk 0:02:26]} 14... dxe5 {[%clk 0:02:28.8]} 15. Bc4 {[%clk 0:02:25.3]}
15... Rac8 {[%clk 0:02:24.9]} 16. Qe2 {[%clk 0:02:24.7]} 16... a6 {[%clk
0:02:17.6]} 17. Ka2 {[%clk 0:02:20.7]} 17... Qc6 {[%clk 0:02:14.8]} 18. f3
{[%clk 0:02:15.1]} 18... b5 {[%clk 0:02:14.7]} 19. Bb3 {[%clk 0:02:11.4]} 19...
Nxb3 {[%clk 0:02:12]} 20. cxb3 {[%clk 0:02:12.3]} 20... Nd5 {[%clk 0:02:11]} 21.
Ne4 {[%clk 0:02:10.5]} 21... Qc2 {[%clk 0:02:10.8]} 22. Rd2 {[%clk 0:02:08.5]}
22... Qc6 {[%clk 0:02:07.1]} 23. Rdd1 {[%clk 0:02:01.9]} 23... Qc2 {[%clk
0:02:01.4]} 24. Rd2 {[%clk 0:02:01.5]} 24... Qc6 {[%clk 0:02:00.7]} 25. Rdd1
{[%clk 0:01:45.1]} 1/2-1/2

[Event "Late-Titled-Tuesday-Blitz-April-02-2024"]
[Site "Chess.com"]
[Date "2024.04.02"]
[Round "3"]
[White "dosto07"]
[Black "bescmelasti"]
[Result "1-0"]
[WhiteElo "2476"]
[BlackElo "2627"]
[TimeControl "180+1"]
[EndTime "14:24:01 PDT"]
[Termination "dosto07 won by resignation"]

1. e4 {[%clk 0:03:00.9]} 1... c5 {[%clk 0:02:59.4]} 2. Nf3 {[%clk 0:03:00.3]}
2... e6 {[%clk 0:02:59.7]} 3. c3 {[%clk 0:03:00]} 3... d5 {[%clk 0:02:58.9]} 4.
exd5 {[%clk 0:03:00.2]} 4... Qxd5 {[%clk 0:02:58.5]} 5. d4 {[%clk 0:03:01.1]}
5... Nf6 {[%clk 0:02:59]} 6. Na3 {[%clk 0:03:01]} 6... Nc6 {[%clk 0:02:57.8]} 7.
Be3 {[%clk 0:02:56.1]} 7... cxd4 {[%clk 0:02:57.5]} 8. Nb5 {[%clk 0:02:55.9]}
8... Qd7 {[%clk 0:02:58.1]} 9. Nbxd4 {[%clk 0:02:55.5]} 9... Nd5 {[%clk
0:02:58.5]} 10. Bc1 {[%clk 0:02:38.5]} 10... Be7 {[%clk 0:02:54.9]} 11. Bb5
{[%clk 0:02:38]} 11... Qc7 {[%clk 0:02:52.1]} 12. Qa4 {[%clk 0:02:21.1]} 12...
Bd7 {[%clk 0:02:42.3]} 13. Nxc6 {[%clk 0:02:19.9]} 13... bxc6 {[%clk 0:02:43.1]}
14. Bd3 {[%clk 0:02:19.5]} 14... c5 {[%clk 0:02:37.8]} 15. Qg4 {[%clk 0:02:15]}
15... O-O {[%clk 0:02:17.1]} 16. O-O {[%clk 0:02:12.6]} 16... Bc6 {[%clk
0:02:02]} 17. Re1 {[%clk 0:02:08]} 17... Rad8 {[%clk 0:01:57.8]} 18. Ne5 {[%clk
0:02:06.7]} 18... Ba8 {[%clk 0:01:48.5]} 19. Qh3 {[%clk 0:01:50.1]} 19... g6
{[%clk 0:01:43.1]} 20. Bh6 {[%clk 0:01:47.8]} 20... Rfe8 {[%clk 0:01:29.8]} 21.
Nxf7 {[%clk 0:01:47.1]} 1-0

[Event "Late-Titled-Tuesday-Blitz-April-02-2024"]
[Site "Chess.com"]
[Date "2024.04.02"]
[Round "3"]
[White "Byniolus"]
[Black "best926"]
[Result "1-0"]
[WhiteElo "2784"]
[BlackElo "2511"]
[TimeControl "180+1"]
[EndTime "14:24:03 PDT"]
[Termination "Byniolus won by resignation"]

1. d4 {[%clk 0:03:00.9]} 1... d5 {[%clk 0:02:59.4]} 2. Nf3 {[%clk 0:03:00.9]}
2... e6 {[%clk 0:02:59.7]} 3. Bf4 {[%clk 0:03:01.3]} 3... Nf6 {[%clk 0:02:58]}
4. e3 {[%clk 0:03:01.4]} 4... Bd6 {[%clk 0:02:58.5]} 5. Bg3 {[%clk 0:03:01.6]}
5... O-O {[%clk 0:02:58.1]} 6. Nbd2 {[%clk 0:03:02]} 6... c5 {[%clk 0:02:58.6]}
7. c3 {[%clk 0:03:02.4]} 7... Qc7 {[%clk 0:02:59.1]} 8. Be2 {[%clk 0:03:02.8]}
8... Nbd7 {[%clk 0:02:59.6]} 9. c4 {[%clk 0:03:03.4]} 9... cxd4 {[%clk
0:02:19.4]} 10. Nxd4 {[%clk 0:03:04.3]} 10... e5 {[%clk 0:02:20.3]} 11. Nb5
{[%clk 0:02:53.6]} 11... Qb8 {[%clk 0:02:20.7]} 12. cxd5 {[%clk 0:02:47.4]}
12... Nxd5 {[%clk 0:02:09.9]} 13. O-O {[%clk 0:02:23.7]} 13... Re8 {[%clk
0:01:00]} 14. Nc4 {[%clk 0:02:02.4]} 1-0

[Event "Late-Titled-Tuesday-Blitz-April-02-2024"]
[Site "Chess.com"]
[Date "2024.04.02"]
[Round "3"]
[White "dolynachess"]
[Black "Mysterio47"]
[Result "1-0"]
[WhiteElo "2523"]
[BlackElo "2755"]
[TimeControl "180+1"]
[EndTime "14:24:03 PDT"]
[Termination "dolynachess won by resignation"]

1. d4 {[%clk 0:02:57]} 1... Nf6 {[%clk 0:03:00.1]} 2. c4 {[%clk 0:02:57]} 2...
g6 {[%clk 0:03:00.4]} 3. Nc3 {[%clk 0:02:57.1]} 3... Bg7 {[%clk 0:03:01.1]} 4.
e4 {[%clk 0:02:57.2]} 4... d6 {[%clk 0:03:01.7]} 5. Nf3 {[%clk 0:02:57.6]} 5...
O-O {[%clk 0:03:02.3]} 6. Be2 {[%clk 0:02:58.1]} 6... e5 {[%clk 0:03:02.9]} 7.
d5 {[%clk 0:02:58.1]} 7... a5 {[%clk 0:03:02.3]} 8. Be3 {[%clk 0:02:58.2]} 8...
Ng4 {[%clk 0:02:55.5]} 9. Bg5 {[%clk 0:02:58.4]} 9... f6 {[%clk 0:02:55.7]} 10.
Bh4 {[%clk 0:02:58.6]} 10... g5 {[%clk 0:02:54]} 11. Bg3 {[%clk 0:02:58.5]}
11... Nh6 {[%clk 0:02:54.5]} 12. Nd2 {[%clk 0:02:58.4]} 12... Na6 {[%clk
0:02:53]} 13. f3 {[%clk 0:02:52.5]} 13... f5 {[%clk 0:02:53.3]} 14. h3 {[%clk
0:02:50.7]} 14... f4 {[%clk 0:02:52.9]} 15. Bf2 {[%clk 0:02:50.5]} 15... Nf7
{[%clk 0:02:52.7]} 16. a3 {[%clk 0:02:50.8]} 16... Bd7 {[%clk 0:02:52.3]} 17. b3
{[%clk 0:02:21.6]} 17... Nc5 {[%clk 0:02:47.8]} 18. b4 {[%clk 0:02:19.9]} 18...
axb4 {[%clk 0:02:44.7]} 19. axb4 {[%clk 0:02:20.8]} 19... Rxa1 {[%clk 0:02:45]}
20. Qxa1 {[%clk 0:02:20.8]} 20... Na6 {[%clk 0:02:45.9]} 21. Qa3 {[%clk
0:02:17.6]} 21... Bc8 {[%clk 0:02:21.6]} 22. c5 {[%clk 0:02:16.9]} 22... Nb8
{[%clk 0:02:13.5]} 23. Qa7 {[%clk 0:01:57.2]} 23... c6 {[%clk 0:02:01.9]} 24.
Qxb8 {[%clk 0:01:52.6]} 24... Qd7 {[%clk 0:01:47.2]} 25. cxd6 {[%clk 0:01:36.7]}
25... Nxd6 {[%clk 0:01:45.3]} 26. Bc5 {[%clk 0:01:36.7]} 1-0